Cogmind - Beta 16 @@@ ROGUE MODE // 2025.11.13 @ 02:15:25 Player: Demo Result: Destroyed by P-80 Master with Gamma Rifle Performance ------------- Evolutions (7) 3500 Regions Visited (13) 2600 Robots Destroyed (36) 180 Value Destroyed (1404) 1404 Prototype IDs (14) 280 Alien Tech Used (0) 0 Bonus (2088) 2088 TOTAL SCORE: 10052 Bonus ------- Follower Combat Kills 288 Entered DSFs 1000 Registered with UFD 300 Met Optimus in HQ 500 Cogmind --------- Core Integrity 0/1300 Matter 251/300 Energy 99/100 System Corruption 18% Temperature Cool (0) Movement Core (50) Location -3/Research Parts ------- > --- POWER (1) -------- (None) > --- PROPULSION (5) --- Biometal Medium Treads Biometal Leg > --- UTILITY (8) ------ (None) > --- WEAPON (7) ------- (None) > --- INVENTORY (5) ---- Nova Cannon Nova Cannon Heavy Proton Missile Launcher Heavy Proton Missile Launcher Improved Plasma Cutter Peak State ------------ > --- POWER ------------ Neutrino Core > --- PROPULSION ------- Flexi-carbon Leg Flexi-carbon Leg Flexi-carbon Leg Armored Wheel > --- UTILITY ---------- Experimental Terrain Scan Processor Melee Analysis Suite Actuator Array Advanced ECM Suite Improved Utility Shielding Graphene Brace > --- WEAPON ----------- Heavy Proton Missile Launcher Advanced Datajack Power Sword Power Sword Power Sword Power Sword > --- INVENTORY -------- Antimatter Reactor Light Antimatter Reactor Heavy Proton Missile Launcher Heavy Proton Missile Launcher Improved Plasma Cutter [Rating: 88] Favorites ----------- Power Subdweller Power Source Engine Subdweller Power Source Power Core Neutrino Core Reactor Antimatter Reactor Propulsion Armored Wheel Treads Light Treads Leg Flexi-carbon Leg Wheel Armored Wheel Hover Unit Antigrav Array Flight Unit Q-thruster Utility Makeshift Light Armor Plating Device Graphene Brace Storage Medium Storage Unit Processor Melee Analysis Suite Hackware Hacking Suite Protection Makeshift Light Armor Plating Weapon Power Sword Energy Gun Makeshift Laser Energy Cannon Subdweller Beam Cannon Ballistic Gun Subdweller Machine Gun Ballistic Cannon Assault Cannon Launcher Heavy Proton Missile Launcher Slashing Weapon Power Sword Special Melee Weapon Advanced Datajack Build | -11 -10 -10 -10 -9 -9 -6 -6 -5 -5 -5 -5 -4 -3 ------- Run | Yrd Mat Min Sub Rec Scr Fac DSF Fac Was Fac DSF Fac Res Slots Evolved 14 | . . . . . . 8 . 2 . . . 2 2 Power . | . . . . . . . . . . . . . . Propulsion 3 | . . . . . . 3 . . . . . . . Utility 6 | . . . . . . 4 . . . . . 1 1 Weapon 5 | . . . . . . 1 . 2 . . . 1 1 Parts Attached 65 | 2 . . 5 5 . 4 15 2 2 . 1 6 23 Power 7 | . . . 1 . . . 2 . . . 1 . 3 Engine 3 | . . . 1 . . . 2 . . . . . . Core 2 | . . . . . . . . . . . 1 . 1 Reactor 2 | . . . . . . . . . . . . . 2 Propulsion 24 | 2 . . . 2 . 2 2 . . . . 2 14 Treads 10 | 2 . . . . . . . . . . . . 8 Leg 5 | . . . . . . . 2 . . . . 2 1 Wheel 6 | . . . . 2 . 2 . . . . . . 2 Hover 1 | . . . . . . . . . . . . . 1 Flight 2 | . . . . . . . . . . . . . 2 Utility 16 | . . . 1 2 . 1 6 1 1 . . 1 3 Device 4 | . . . . . . . 2 1 . . . 1 . Storage 1 | . . . . 1 . . . . . . . . . Processor 2 | . . . . . . . 1 . 1 . . . . Hackware 1 | . . . . . . . . . . . . . 1 Protection 8 | . . . 1 1 . 1 3 . . . . . 2 Artifact . | . . . . . . . . . . . . . . Weapon 18 | . . . 3 1 . 1 5 1 1 . . 3 3 Energy Gun 2 | . . . 1 1 . . . . . . . . . Energy Cannon 3 | . . . 1 . . . . . . . . . 2 Ballistic Gun 1 | . . . 1 . . . . . . . . . . Ballistic Cannon 1 | . . . . . . 1 . . . . . . . Launcher 5 | . . . . . . . 1 . 1 . . 2 1 Special Weapon . | . . . . . . . . . . . . . . Impact Weapon . | . . . . . . . . . . . . . . Slashing Weapon 5 | . . . . . . . 4 1 . . . . . Piercing Weapon . | . . . . . . . . . . . . . . Special Melee Weapon 1 | . . . . . . . . . . . . 1 . Unidentified Prototypes 2 | . . . . . . . . . . . . 1 1 Parts Lost 20 | . . . . 1 . . 1 . . . . 6 12 Power 1 | . . . . . . . . . . . . . 1 Propulsion 12 | . . . . . . . 1 . . . . 4 7 Utility 2 | . . . . 1 . . . . . . . . 1 Weapon 5 | . . . . . . . . . . . . 2 3 Highest Loss Streak 7 | . . . . 1 . . 1 . . . . 4 7 To Critical Strikes . | . . . . . . . . . . . . . . Average Backups 5 | . . . 3 4 9 7 8 8 5 5 2 4 4 Power . | . . . . . . . . . . . . 1 . Propulsion . | . . . . . 2 . . . . . 1 1 . Utility 1 | . . . 1 1 2 2 2 4 2 1 . . . Weapon 2 | . . . 1 1 3 3 4 3 3 4 1 1 2 Tool/Special . | . . . . . . . . . . . . . . Unused Backups 19 | . . . . 3 2 . 6 . 4 . 1 1 2 Power 2 | . . . . . . . . . . . . 1 1 Propulsion 1 | . . . . . 1 . . . . . . . . Utility 5 | . . . . . 1 . 1 . 2 . 1 . . Weapon 6 | . . . . . . . 5 . 1 . . . . Tool/Special 5 | . . . . 3 . . . . 1 . . . 1 Average Slot Usage (%) 76 | . 28 28 68 85 100 64 89 99 70 52 80 89 42 Engine 8 | . . . 10 14 14 6 6 5 1 . . . . Treads 10 | . 28 28 28 18 . . . . . . . . 5 Leg 2 | . . . . . . . 11 11 11 11 11 11 4 Wheel 12 | . . . . 9 28 19 19 17 17 17 17 12 2 Device 2 | . . . . . . . 6 8 7 5 9 14 7 Storage 4 | . . . . 4 14 6 6 5 1 . . . . Processor 2 | . . . . . . . 3 5 8 11 11 10 4 Protection 9 | . . . 10 9 14 11 14 13 7 5 5 5 4 Energy Gun 5 | . . . . 8 14 6 2 . . . . . . Energy Cannon 2 | . . . 8 5 . . . . . . . . . Ballistic Gun 7 | . . . 8 14 14 6 2 . . . . . . Slashing Weapon 4 | . . . . . . . 12 28 7 . 17 21 8 Peak Build Rating 88 | 2 2 2 13 19 19 27 62 70 70 39 68 88 88 Average Rating 29 | 1 2 2 9 13 18 26 52 69 46 39 63 83 52 On Entrance 30 | . 2 2 2 13 18 19 27 61 70 39 39 68 67 Avg Prop Armor Cover (%) 30 | 41 41 41 41 . . . 11 11 39 42 17 10 34 Naked Turns 11 | . . . . . . . . . . . . . 11 Heaviest Build 59 | . . . 35 35 25 33 43 46 56 3 34 47 59 Greatest Support 130 | 3 3 3 40 40 24 48 48 36 36 3 36 60 130 Greatest Overweight (x) 4 | . . . 1 1 1 . 1 1 1 . . 3 4 Average Overweight (x) . | . . . . . 1 . . 1 . . . . . Largest Inventory Capacity 10 | 5 5 5 5 10 10 10 10 10 10 5 5 5 5 Average Capacity 7 | 5 5 5 5 6 10 10 10 10 6 5 5 5 5 Most Carried 10 | . . 1 5 10 10 9 10 9 8 5 5 5 5 Average Carried 6 | . . . 4 5 9 6 8 8 5 5 2 4 4 Final Capacity 10 | 5 5 5 5 10 10 10 10 10 5 5 5 5 5 Final Carried 10 | . . 1 5 8 10 6 10 8 5 5 4 5 5 Class Distribution -------------------- 44% | Commander-Mutant 21% | Mutant 10% | Subdweller-Mutant 10% | Gladiator 5% | Commander-Gladiator 5% | Scavenger-Gladiator Dominant Class ---------------- Mutant | -10/Materials Mutant | -10/Mines Subdweller-Mutant | -10/Subcaves Commander-Mutant | -9/Recycling Commander-Mutant | -9/Scraptown Commander-Tank | -6/Factory Commander-Gladiator | -6/DSF Commander-Gladiator | -5/Factory Mutant | -5/Waste Mutant | -5/Factory Gladiator | -5/DSF Gladiator | -4/Factory Mutant | -3/Research Resources | -11 -10 -10 -10 -9 -9 -6 -6 -5 -5 -5 -5 -4 -3 ----------- Run | Yrd Mat Min Sub Rec Scr Fac DSF Fac Was Fac DSF Fac Res Matter Collected 972 | 213 . 7 50 79 . . 236 . . . 151 29 207 Remotely . | . . . . . . . . . . . . . . Salvage Created 1517 | . . . 3 411 . . 186 51 . . 151 114 601 Parts 72 | . . . 1 16 . . 9 2 . . 9 9 26 Haulers Intercepted 1 | . . . . . . . . . . . 1 . . Recyclers Shooed 1 | . . . . 1 . . . . . . . . . Parts Field Recycled . | . . . . . . . . . . . . . . Retrieved Matter . | . . . . . . . . . . . . . . Parts Self-Destructed 5 | . . . 5 . . . . . . . . . . Prevented . | . . . . . . . . . . . . . . Parts Restored . | . . . . . . . . . . . . . . Kills | -11 -10 -10 -10 -9 -9 -6 -6 -5 -5 -5 -5 -4 -3 ------- Run | Yrd Mat Min Sub Rec Scr Fac DSF Fac Was Fac DSF Fac Res Combat Hostiles Destroyed 28 | . . . 1 8 . . 4 1 . . 1 5 8 Melee 12 | . . . 1 . . . . 1 . . 1 5 4 Guns 6 | . . . . 5 . . 1 . . . . . . Cannons 5 | . . . . 3 . . 2 . . . . . . AOE 5 | . . . . . . . 1 . . . . . 4 Classes Destroyed 13 | . . . 2 6 . . 3 1 . . . . 1 Worker 2 | . . . . . . . . . . . . . 2 Builder 1 | . . . . 1 . . . . . . . . . Hauler 2 | . . . . . . . 1 . . . 1 . . Recycler 2 | . . . . 1 . . . . . . . . 1 Turret 1 | . . . 1 . . . . . . . . . . Swarmer 11 | . . . 1 . . . 1 . . . . 5 4 Grunt 2 | . . . . . . . 2 . . . . . . Duelist 1 | . . . . 1 . . . . . . . . . Protector 1 | . . . . 1 . . . . . . . . . Sentry 5 | . . . . 4 . . . . . . . . 1 Specialist 2 | . . . . . . . 1 . . . 1 . . Hunter 4 | . . . . 2 . . . . . . . . 2 Programmer 2 | . . . . . . . . 1 . . . . 1 Best Kill Streak 6 | . . . 2 4 . . 2 1 . . 1 5 6 Combat Bots Only 6 | . . . 1 4 . . 2 1 . . 1 5 6 Max Kills in Single Turn 2 | . . . 1 1 . . 2 1 . . 1 1 1 Gunslinging . | . . . . . . . . . . . . . . Exploded 1 | . . . . . . . 1 . . . . . 1 Melee 1 | . . . 1 . . . . 1 . . 1 1 1 Uniques/NPCs Destroyed . | . . . . . . . . . . . . . . Combat | -11 -10 -10 -10 -9 -9 -6 -6 -5 -5 -5 -5 -4 -3 -------- Run | Yrd Mat Min Sub Rec Scr Fac DSF Fac Was Fac DSF Fac Res Hostile Shots Fired 497 | . 2 . 19 31 . . 18 . . . 5 64 358 Missed 172 | . . . 8 5 . . 4 . . . . 11 144 Hits 325 | . 2 . 11 26 . . 14 . . . 5 53 214 Projectile 325 | . 2 . 11 26 . . 14 . . . 5 53 214 Critical Strikes 20 | . . . . 2 . . 2 . . . . 2 14 Actively Blocked 8 | . . . . . . . . . . . . 2 6 Part Disruptions 1 | . . . . . . . . . . . . . 1 Damage Taken 6051 | . 27 . 151 328 . . 405 . . . 109 881 4150 Core 1716 | . . . 73 66 . . 131 . . . 23 111 1312 Absorbed by Shields 130 | . . . . 53 . . 77 . . . . . . Redirected to Shielding 50 | . . . . . . . . . . . . 37 13 Core Remaining (%) 83 | 100 . . . . 44 . 84 . . . 97 90 . Volleys Fired 32 | . . . . 17 . . 11 . . . . . 4 Largest 3 | . . . . 2 . . 3 . . . . . 1 Hottest 117 | . . . . 110 . . 117 . . . . . 40 Shots Fired 56 | . . . . 29 . . 23 . . . . . 4 Gun 33 | . . . . 21 . . 12 . . . . . . Cannon 18 | . . . . 8 . . 10 . . . . . . Launcher 5 | . . . . . . . 1 . . . . . 4 Special . | . . . . . . . . . . . . . . Kinetic 32 | . . . . 17 . . 15 . . . . . . Thermal 19 | . . . . 12 . . 7 . . . . . . Explosive 1 | . . . . . . . 1 . . . . . . Electromagnetic 4 | . . . . . . . . . . . . . 4 Robot Hit Streak 7 | . . . . 6 . . 7 . . . . . 4 Robot Miss Streak 2 | . . . . 2 . . 2 . . . . . . Penetration Max . | . . . . . . . . . . . . . . Secondary Targets . | . . . . . . . . . . . . . . Shots Hit Robots 72 | . . . . 20 . . 13 3 . . 3 10 23 Core Hits 48 | . . . 1 11 . . 12 1 . . 2 4 17 Critical Kills . | . . . . . . . . . . . . . . Critical Parts Destroyed . | . . . . . . . . . . . . . . Critical Strikes 5 | . . . . 1 . . 1 . . . 1 1 1 Burn 1 | . . . . 1 . . . . . . . . . Blast 1 | . . . . . . . 1 . . . . . . Sever 3 | . . . . . . . . . . . 1 1 1 Melee Attacks 56 | . . . . . . . . 5 . . 5 17 29 Impact . | . . . . . . . . . . . . . . Slashing 56 | . . . . . . . . 5 . . 5 17 29 Piercing . | . . . . . . . . . . . . . . Sneak Attacks 10 | . . . . . . . . 3 . . 3 . 4 Combat Hostiles 3 | . . . . . . . . 3 . . . . . Follow-up Attacks 11 | . . . . . . . . 2 . . 1 4 4 Damage Inflicted 3167 | . . . 31 502 . . 451 212 . . 281 436 1254 Guns 463 | . . . . 292 . . 171 . . . . . . Cannons 367 | . . . . 188 . . 179 . . . . . . Explosions 348 | . . . . . . . 101 . . . . . 247 Melee 1874 | . . . . . . . . 212 . . 274 404 984 Ramming 115 | . . . 31 22 . . . . . . 7 32 23 Kinetic 523 | . . . . 241 . . 282 . . . . . . Thermal 307 | . . . . 239 . . 68 . . . . . . Explosive 101 | . . . . . . . 101 . . . . . . Electromagnetic 247 | . . . . . . . . . . . . . 247 Impact . | . . . . . . . . . . . . . . Slashing 1874 | . . . . . . . . 212 . . 274 404 984 Piercing . | . . . . . . . . . . . . . . Highest Corruption 18 | . . . . . . . . . 7 7 7 . 18 Average Corruption 11 | . . . . . . . . . 7 7 7 . 12 Corruption Purged . | . . . . . . . . . . . . . . Corruption Blocked . | . . . . . . . . . . . . . . Effects 22 | . . . . . . . . . 2 . 3 . 17 Message Errors 5 | . . . . . . . . . 2 . . . 3 Matter Fused 8 | . . . . . . . . . . . 2 . 6 Heat Flow Errors 1 | . . . . . . . . . . . . . 1 Parts Rejected 1 | . . . . . . . . . . . . . 1 Parts Fused 1 | . . . . . . . . . . . . . 1 Data Loss (minor) 2 | . . . . . . . . . . . 1 . 1 Data Loss (major) 1 | . . . . . . . . . . . . . 1 Misdirections 3 | . . . . . . . . . . . . . 3 Overload Shots . | . . . . . . . . . . . . . . Overflow Damage 269 | . . . . 30 . . . 59 . . . 70 110 Projectiles 30 | . . . . 30 . . . . . . . . . Explosions . | . . . . . . . . . . . . . . Melee 239 | . . . . . . . . 59 . . . 70 110 Knockbacks 2 | . . . . . . . 1 . . . . . 1 Impact 1 | . . . . . . . . . . . . . 1 Kinetic 1 | . . . . . . . 1 . . . . . . Secondary . | . . . . . . . . . . . . . . Self-Inflicted Damage 49 | . . . . . . . 42 . . . . . 7 Shots 1 | . . . . . . . 1 . . . . . . Rammed 21 | . . . 4 8 . . . . . . . . 9 Targets Rammed 30 | . . . 6 8 . . . . . . 1 6 9 Kicked 7 | . . . . . . . . . . . 1 6 . Crushed 2 | . . . 2 . . . . . . . . . . Highest Temperature 234 | . . . . 226 . . 23 . . . . . 234 Average Temperature 74 | . . . . 73 . . 14 . . . . . 112 Received Heat Transfer 592 | . 15 . 57 143 . . 61 . . . . 147 169 Siege Activations . | . . . . . . . . . . . . . . Martial Activations . | . . . . . . . . . . . . . . Shielding Activations . | . . . . . . . . . . . . . . Robots Disrupted . | . . . . . . . . . . . . . . Combat Hostiles . | . . . . . . . . . . . . . . Robots Corrupted . | . . . . . . . . . . . . . . Combat Hostiles . | . . . . . . . . . . . . . . Parts Fried 3 | . . . . . . . . . . . . . 3 Impact Corruptions . | . . . . . . . . . . . . . . Robots Melted . | . . . . . . . . . . . . . . Combat Hostiles . | . . . . . . . . . . . . . . Parts Melted . | . . . . . . . . . . . . . . Heat Transferred 592 | . . . . 444 . . 148 . . . . . . Parts Sabotaged . | . . . . . . . . . . . . . . Parts Stolen . | . . . . . . . . . . . . . . Parts Stripped . | . . . . . . . . . . . . . . Power Chain Reactions . | . . . . . . . . . . . . . . Alert | -11 -10 -10 -10 -9 -9 -6 -6 -5 -5 -5 -5 -4 -3 ------- Run | Yrd Mat Min Sub Rec Scr Fac DSF Fac Was Fac DSF Fac Res Maximum Alert Level . | . . . . . . . . . . . . . . Low Security (%) 100 | 100 100 100 . 100 . 100 100 100 100 100 100 100 100 Level 1 . | . . . . . . . . . . . . . . Level 2 . | . . . . . . . . . . . . . . Level 3 . | . . . . . . . . . . . . . . Level 4 . | . . . . . . . . . . . . . . Level 5 . | . . . . . . . . . . . . . . High Security . | . . . . . . . . . . . . . . Max Security . | . . . . . . . . . . . . . . Peak Influence 180 | . . 30 . 73 . . 169 116 30 . 38 115 180 Initial 88 | . . . . 16 . . . 88 30 . 3 16 12 Average 26 | . . 2 . 5 . . 68 101 15 . 20 32 44 Influence Increases 1332 | . . 30 82 249 . . 209 58 . 5 40 155 504 Destroy 0b10 Robot/C 680 | . . . 60 180 . . 140 20 . . 20 100 160 Destroy 0b10 Robot/NC 70 | . . . . 50 . . . . . . 5 . 15 Destroy Leader 80 | . . . . . . . 20 10 . . . 10 40 Allied During Kill 39 | . . . 7 15 . . 15 2 . . . . . Successful Hack 29 | . . . . . . . . 24 . 5 . . . Select Force Hacks 30 | . . . . . . . . . . . . . 30 Disable Machine 30 | . . . . . . . 15 . . . . 15 . Destroy Structure 29 | . . . . 4 . . 19 2 . . . . 4 Partial Spotted 15 | . . . . . . . . . . . . . 15 Lose Combat Pursuer 330 | . . 30 15 . . . . . . . 15 30 240 Influence Decreases 1160 | . . 30 48 283 . . 40 141 86 . 12 163 357 Entered New Map 187 | . . . . 18 . . . 81 56 . 2 17 13 Time Decay 553 | . . 30 8 145 . . . 40 20 . . 86 224 Lost Part 200 | . . . . 10 . . 10 . . . . 60 120 Lost Ally 220 | . . . 40 110 . . 30 20 10 . 10 . . Squads Dispatched 12 | . 1 . . . . . 1 1 . . 1 1 7 Investigation 5 | . . . . . . . . 1 . . . 1 3 Extermination 3 | . . . . . . . . . . . . . 3 Reinforcement 4 | . 1 . . . . . 1 . . . 1 . 1 Assault . | . . . . . . . . . . . . . . Garrison . | . . . . . . . . . . . . . . Intercept . | . . . . . . . . . . . . . . Searches Triggered . | . . . . . . . . . . . . . . Construction Impeded . | . . . . . . . . . . . . . . Haulers Reinforced . | . . . . . . . . . . . . . . Active Scanning Responses . | . . . . . . . . . . . . . . Cargo Convoy Interrupts . | . . . . . . . . . . . . . . Stealth | -11 -10 -10 -10 -9 -9 -6 -6 -5 -5 -5 -5 -4 -3 --------- Run | Yrd Mat Min Sub Rec Scr Fac DSF Fac Was Fac DSF Fac Res Distress Signals 1 | . . . . . . . . . . . . . 1 Communications Jammed . | . . . . . . . . . . . . . . Distress Signals . | . . . . . . . . . . . . . . Times Spotted 78 | . 2 2 9 8 . . 6 2 6 . 3 11 29 Peak Tracking Total 10 | . 2 2 6 3 . . 3 3 6 . 2 6 10 Tactical Retreats 13 | . . 1 1 . . . . . . . 1 2 8 Traps | -11 -10 -10 -10 -9 -9 -6 -6 -5 -5 -5 -5 -4 -3 ------- Run | Yrd Mat Min Sub Rec Scr Fac DSF Fac Was Fac DSF Fac Res Traps Triggered 5 | . . . . . . . 3 1 . . . . 1 Indirectly . | . . . . . . . . . . . . . . Trap Hack Attempts . | . . . . . . . . . . . . . . Triggered . | . . . . . . . . . . . . . . Disarmed . | . . . . . . . . . . . . . . Reprogrammed . | . . . . . . . . . . . . . . Reused 1 | . . . 1 . . . . . . . . . . Traps Extracted . | . . . . . . . . . . . . . . Installed 1 | . . . 1 . . . . . . . . . . Triggered . | . . . . . . . . . . . . . . Machines | -11 -10 -10 -10 -9 -9 -6 -6 -5 -5 -5 -5 -4 -3 ---------- Run | Yrd Mat Min Sub Rec Scr Fac DSF Fac Was Fac DSF Fac Res Machines Disabled 4 | . . . 2 . . . 1 . . . . 1 . Max in Single Turn 1 | . . . . . . . . . . . . 1 . Machines Repaired . | . . . . . . . . . . . . . . Machines Dismantled . | . . . . . . . . . . . . . . Machines Sabotaged . | . . . . . . . . . . . . . . Overloaded Fab Kills . | . . . . . . . . . . . . . . Hacking | -11 -10 -10 -10 -9 -9 -6 -6 -5 -5 -5 -5 -4 -3 --------- Run | Yrd Mat Min Sub Rec Scr Fac DSF Fac Was Fac DSF Fac Res Machines Accessed 14 | . . . . . 3 1 . 3 . 1 . 2 4 Terminals 5 | . . . . . . 1 . 2 . 1 . . 1 Fabricators 1 | . . . . . . . . . . . . 1 . Repair Stations 1 | . . . . . . . . . . . . 1 . Recycling Units 3 | . . . . . . . . 1 . . . . 2 Scanalyzers . | . . . . . . . . . . . . . . Garrison Access 1 | . . . . . . . . . . . . . 1 Total Hacks 30 | . . . . . 14 1 . 4 . 1 . 3 7 Successful 20 | . . . . . 14 1 . 2 . 1 . . 2 Failed 10 | . . . . . . . . 2 . . . 3 5 Catastrophic 3 | . . . . . . . . 1 . . . 2 . Database Lockouts . | . . . . . . . . . . . . . . Manual 12 | . . . . . . . . 3 . . . 3 6 Terminals 8 | . . . . . . 1 . 3 . 1 . . 3 Fabricators 1 | . . . . . . . . . . . . 1 . Repair Stations 2 | . . . . . . . . . . . . 2 . Recycling Units 4 | . . . . . . . . 1 . . . . 3 Scanalyzers . | . . . . . . . . . . . . . . Garrison Access 1 | . . . . . . . . . . . . . 1 Terminal Hacks 16 | . . . . . 14 1 . . . 1 . . . Record 9 | . . . . . 9 . . . . . . . . Robot Analysis 4 | . . . . . 4 . . . . . . . . Open DSF 2 | . . . . . . 1 . . . 1 . . . Proto ID Catalog 1 | . . . . . 1 . . . . . . . . Fabricator Hacks . | . . . . . . . . . . . . . . Repair Station Hacks . | . . . . . . . . . . . . . . Recycling Unit Hacks . | . . . . . . . . . . . . . . Scanalyzer . | . . . . . . . . . . . . . . Garrison Access Hacks . | . . . . . . . . . . . . . . Unauthorized Hacks 4 | . . . . . . . . 2 . . . . 2 Terminals 1 | . . . . . . . . 1 . . . . . Botnet 1 | . . . . . . . . 1 . . . . . Fabricators . | . . . . . . . . . . . . . . Repair Stations . | . . . . . . . . . . . . . . Recycling Units 3 | . . . . . . . . 1 . . . . 2 Tunnel 1 | . . . . . . . . . . . . . 1 Fedlink 2 | . . . . . . . . 1 . . . . 1 Scanalyzers . | . . . . . . . . . . . . . . Garrison Access . | . . . . . . . . . . . . . . Data Cores Recovered . | . . . . . . . . . . . . . . Used . | . . . . . . . . . . . . . . Hacking Detections 9 | . . . . . . 1 . 2 . 1 . 2 3 Full Trace Events 2 | . . . . . . . . . . . . 1 1 Feedback Events . | . . . . . . . . . . . . . . Feedback Blocked . | . . . . . . . . . . . . . . Robot Schematics Acquired . | . . . . . . . . . . . . . . Robots Built . | . . . . . . . . . . . . . . Authchips . | . . . . . . . . . . . . . . Time . | . . . . . . . . . . . . . . Total Robot Build Rating . | . . . . . . . . . . . . . . Part Schematics Acquired . | . . . . . . . . . . . . . . Parts Built . | . . . . . . . . . . . . . . Authchips . | . . . . . . . . . . . . . . Time . | . . . . . . . . . . . . . . Total Part Build Rating . | . . . . . . . . . . . . . . Part Studies Acquired . | . . . . . . . . . . . . . . Parts Repaired . | . . . . . . . . . . . . . . Time . | . . . . . . . . . . . . . . Parts Recycled . | . . . . . . . . . . . . . . Recycled Matter . | . . . . . . . . . . . . . . Retrieved Matter . | . . . . . . . . . . . . . . Retrieved Components . | . . . . . . . . . . . . . . Parts Scanalyzed . | . . . . . . . . . . . . . . Part Schematics Acquired . | . . . . . . . . . . . . . . Parts Damaged . | . . . . . . . . . . . . . . Bothacking | -11 -10 -10 -10 -9 -9 -6 -6 -5 -5 -5 -5 -4 -3 ------------ Run | Yrd Mat Min Sub Rec Scr Fac DSF Fac Was Fac DSF Fac Res Used RIF Installer . | . . . . . . . . . . . . . . Robots Hacked . | . . . . . . . . . . . . . . Non-combat . | . . . . . . . . . . . . . . Combat . | . . . . . . . . . . . . . . Robot Hacks Applied . | . . . . . . . . . . . . . . Relay Couplers Released . | . . . . . . . . . . . . . . Fabnet Peak Effective % . | . . . . . . . . . . . . . . Robots Rewired 16 | . . . . 16 . . . . . . . . . Allies Hacked . | . . . . . . . . . . . . . . Hacks Repelled . | . . . . . . . . . . . . . . Allies | -11 -10 -10 -10 -9 -9 -6 -6 -5 -5 -5 -5 -4 -3 -------- Run | Yrd Mat Min Sub Rec Scr Fac DSF Fac Was Fac DSF Fac Res Total Allies 20 | . . 4 . 16 . . . . . . . . . Largest Group 11 | . . 4 4 11 8 8 7 5 2 . 1 . . Highest-Rated Group 161 | . . 71 71 161 101 101 91 72 34 . 10 . . Highest-Rated Ally 34 | . . 31 31 34 25 25 25 25 25 . 10 . . Total Orders . | . . . . . . . . . . . . . . Ally Attacks 50 | . . . 30 6 . . 13 1 . . . . . Total Damage 1053 | . . . 353 488 . . 178 34 . . . . . Kills 12 | . . . 4 5 . . 3 . . . . . . Allies Corrupted . | . . . . . . . . . . . . . . Allies Melted . | . . . . . . . . . . . . . . Intel | -11 -10 -10 -10 -9 -9 -6 -6 -5 -5 -5 -5 -4 -3 ------- Run | Yrd Mat Min Sub Rec Scr Fac DSF Fac Was Fac DSF Fac Res Active Infowar (turns) . | . . . . . . . . . . . . . . Robot Analysis Total 4 | . . . . . 4 . . . . . . . . Derelict Logs Recovered 4 | . . 2 . . 2 . . . . . . . . Drone Launches . | . . . . . . . . . . . . . . Drone Recoveries . | . . . . . . . . . . . . . . Exploration | -11 -10 -10 -10 -9 -9 -6 -6 -5 -5 -5 -5 -4 -3 ------------- Run | Yrd Mat Min Sub Rec Scr Fac DSF Fac Was Fac DSF Fac Res Turns Passed 4537 | 15 24 350 562 934 1162 30 260 90 63 5 76 365 601 Spaces Moved 3905 | 24 47 467 489 464 1061 19 143 75 94 10 68 282 662 Core 1289 | 24 47 467 227 . . . . . 85 10 9 . 420 Treads 537 | . . . 262 267 . . . . . . . . 8 Legs 162 | . . . . . . . . . . . . 106 56 Wheels 1836 | . . . . 197 1061 19 143 75 9 . 59 176 97 Hover . | . . . . . . . . . . . . . . Flight 81 | . . . . . . . . . . . . . 81 Fastest Speed 40 | 50 50 50 50 90 105 90 90 105 50 50 50 90 40 Average Speed 94 | 50 50 50 109 136 105 90 104 105 55 50 84 112 70 Slowest Speed 225 | 50 50 50 160 160 105 90 105 105 105 50 90 135 225 Overloaded Moves . | . . . . . . . . . . . . . . Propulsion Burnouts . | . . . . . . . . . . . . . . Robots Hopped 6 | . . . . . 1 . . . . . . . 5 Potential Cave-ins . | . . . . . . . . . . . . . . Cave-ins Triggered . | . . . . . . . . . . . . . . Exploration Rate (%) 43 | 4 22 91 43 87 72 1 94 3 68 . 48 7 21 Regions Visited 13 Branch Regions 4 Pre-discovered Areas 6 | . . 1 1 . 2 . . . . . . . 2 Known Exits Taken 2 | . . . . . . 1 . . . 1 . . . Unknown Exits Taken 7 | 1 1 1 1 1 1 . . . . . . 1 . Scrap Searched 10 | . . 1 6 . 3 . . . . . . . . Spaces Dug 3 | . . . . . . . . 1 . . . . 2 Terrain Destroyed 28 | . . . . 3 . . 22 1 . . . . 2 Melee 3 | . . . . . . . . 1 . . . . 2 Projectile 3 | . . . . 3 . . . . . . . . . AOE 22 | . . . . . . . 22 . . . . . . Terrain Rammed . | . . . . . . . . . . . . . . Walls Destroyed . | . . . . . . . . . . . . . . Machines Disabled . | . . . . . . . . . . . . . . Actions | -11 -10 -10 -10 -9 -9 -6 -6 -5 -5 -5 -5 -4 -3 --------- Run | Yrd Mat Min Sub Rec Scr Fac DSF Fac Was Fac DSF Fac Res Total 4614 | 25 46 582 517 732 1109 31 234 83 109 9 82 309 746 Wait 287 | . . 115 1 83 42 9 13 3 . . . . 21 Move 3883 | 23 46 466 488 463 1058 18 142 75 93 9 68 282 652 Hop 6 | . . . . . 1 . . . . . . . 5 Pick Up 48 | . . 1 9 9 5 . 13 . 1 . 5 3 2 Fast Attach 43 | 2 . . 4 2 . . 11 . . . 1 4 19 Attach 22 | . . . 1 3 . 4 2 2 1 . 5 1 3 Detach 9 | . . . 1 . . . 1 . 3 . . 1 3 Swap 8 | . . . . . . . 3 1 2 . . 1 1 Drop 47 | . . . 5 6 3 . 14 . 9 . 1 2 7 Fire 32 | . . . . 17 . . 11 . . . . . 4 Melee 34 | . . . . . . . . 2 . . 2 10 20 Ram 4 | . . . . . . . . . . . . . 4 Kick 5 | . . . . . . . . . . . . 5 . Crush 19 | . . . 6 8 . . . . . . . . 5 Escape Stasis 24 | . . . . . . . 24 . . . . . . Rewire 141 | . . . . 141 . . . . . . . . . Trap 1 | . . . 1 . . . . . . . . . . Miscellaneous 1 | . . . 1 . . . . . . . . . . Route ------- -11/Scrapyard -10/Materials (discovered 2 exits: [*Min x2]) -10/Mines (discovered 3 exits: [*Mat] / [*Exi] / [*Sub]) -10/Subcaves -9/Recycling (discovered 2 exits: [*Fac] / *Scr) -9/Scraptown (discovered 2 exits: *Fac x2) -6/Factory -6/DSF -5/Factory -5/Waste -5/Factory -5/DSF -4/Factory (discovered 2 exits: *Res / [*Upp]) -3/Research History --------- Turn | Location | Event 7 | -11/Scrapyard | Discovered new exit (range 15) 16 | -11/Scrapyard | Entered Materials 24 | -10/Materials | Discovered new exit (range 4) 30 | -10/Materials | Discovered new exit (range 15) 40 | -10/Materials | Entered Mines 43 | -10/Mines | Learned location of Mines (-9) 89 | -10/Mines | Deemed a non-threat by the Exiles lab entrance 89 | -10/Mines | Discovered new exit (range 5) 142 | -10/Mines | Discovered new exit (range 9) 188 | -10/Mines | Assisted by bots powering up and referring to "LRC-V3" 312 | -10/Mines | Build established: Mutant 338 | -10/Mines | Received a Mining Laser from a helpful Derelict 389 | -10/Mines | Discovered new exit (range 3) 390 | -10/Mines | Entered Subcaves 390 | -10/Subcaves | Accompanied by 4 allies 409 | -10/Subcaves | Learned location of Zion (-7) 409 | -10/Subcaves | Met a Zionite searching for "candidates" 893 | -10/Subcaves | Build established: Subdweller-Mutant 936 | -10/Subcaves | Discovered new exit (range 11) 952 | -10/Subcaves | Entered Recycling 1251 | -9/Recycling | Discovered new exit (range 9) 1343 | -9/Recycling | Lost 8 allies 1642 | -9/Recycling | Build established: Commander-Mutant 1690 | -9/Recycling | Core integrity fell below 50% 1783 | -9/Recycling | Scanned before Scraplab entrance 1843 | -9/Recycling | Entered Scraplab 1852 | -9/Recycling | Discovered new exit (range 3) 1886 | -9/Recycling | Entered Scraptown 1886 | -9/Scraptown | Accompanied by 8 allies 2067 | -9/Scraptown | Visited UFD Registry 2067 | -9/Scraptown | Registered with UFD as "Dualsplitter" 2082 | -9/Scraptown | Visited Cyclists 2089 | -9/Scraptown | Entered Cyclist Reading Room 2122 | -9/Scraptown | Visited Shadow of the Wyrm 2141 | -9/Scraptown | Heard Great Nut preacher, LISTEN AND RECITE! 2152 | -9/Scraptown | Scanned Subdweller tech in exchange for log data 2156 | -9/Scraptown | Learned Factory terminal intel 2206 | -9/Scraptown | Discovered new exit (range 13) 2315 | -9/Scraptown | Visited Comm Corps 2360 | -9/Scraptown | Visited CR-KLE's Repair Center 2374 | -9/Scraptown | Visited Spacefarers 2406 | -9/Scraptown | Learned location of Extension (-4) 2469 | -9/Scraptown | Visited Junk Repository 2577 | -9/Scraptown | Visited Research Penetration Think Tank 2616 | -9/Scraptown | Visited Chapter 10 2631 | -9/Scraptown | Visited Supply Room 2652 | -9/Scraptown | Visited Infowarlord's Domain 2656 | -9/Scraptown | Found Exp. Terrain Scan Processor 2672 | -9/Scraptown | Visited Science Guys 2708 | -9/Scraptown | Visited Science Testing Area 2726 | -9/Scraptown | Visited Analyses Database 2751 | -9/Scraptown | Visited LU-1G1's Boring Crew 2863 | -9/Scraptown | Discovered new exit (range 3) 2962 | -9/Scraptown | Met Optimus 2962 | -9/Scraptown | Accepted into 0bPrime 3048 | -9/Scraptown | Entered Factory 3048 | -6/Factory | Accompanied by 8 allies 3048 | -6/Factory | Evolved 8 slots: Propulsion x3, Utility x4, Weapon x1 3049 | -6/Factory | Loaded intel: 26 terminal locations 3068 | -6/Factory | Identified exit to DSF 3078 | -6/Factory | Entered DSF 3078 | -6/DSF | Accompanied by 8 allies 3123 | -6/DSF | Additional patrols routed to DSF 3124 | -6/DSF | Discovered new exit (range 15) 3338 | -6/DSF | Entered Factory 3338 | -5/Factory | Accompanied by 5 allies 3338 | -5/Factory | Evolved 2 slots: Weapon x2 3371 | -5/Factory | Loaded intel: 8 recycling unit locations 3428 | -5/Factory | Sucked down chute 3428 | -5/Factory | Entered Waste 3440 | -5/Waste | Spotted C-40 Crusher 3443 | -5/Waste | EMP discharged 3449 | -5/Waste | Spotted C-40 Crusher 3464 | -5/Waste | Spotted C-40 Crusher 3480 | -5/Waste | Spotted C-40 Crusher 3481 | -5/Waste | Spotted C-40 Crusher 3481 | -5/Waste | Spotted C-40 Crusher 3483 | -5/Waste | Discovered new exit (range 14) 3491 | -5/Waste | Entered Factory 3496 | -5/Factory | Identified exit to DSF 3496 | -5/Factory | Entered DSF 3521 | -5/DSF | 4 allies followed down the chute 3538 | -5/DSF | Discovered new exit (range 16) 3550 | -5/DSF | Additional patrols routed to DSF 3572 | -5/DSF | Entered Factory 3572 | -4/Factory | Evolved 2 slots: Utility x1, Weapon x1 3693 | -4/Factory | Discovered new exit (range 7) 3800 | -4/Factory | Build established: Gladiator 3888 | -4/Factory | Discovered new exit (range 9) 3937 | -4/Factory | Entered Research 3937 | -3/Research | Evolved 2 slots: Utility x1, Weapon x1 3968 | -3/Research | Lost 4 parts (2n2w) 4067 | -3/Research | Loaded intel: 5 recycling unit locations 4067 | -3/Research | Learned location of Protoforge (-2) 4239 | -3/Research | Released all parts (11) 4244 | -3/Research | System corruption reached 10% 4246 | -3/Research | Lost 7 parts (3n1u3w) 4311 | -3/Research | Core integrity fell below 50% 4477 | -3/Research | Core integrity fell below 20% 4514 | -3/Research | Build established: Mutant 4538 | -3/Research | Destroyed by P-80 Master with Gamma Rifle Last Messages --------------- 04485_ P-80 Master resets G-67 Veteran, system corruption cleaned. 04487_ U-05 Engineer lays Concrete. 04490_ Connecting with Recycling Unit... >>Force(Tunnel) DISCOVERED[-1/Access] 04490_ ALERT: Suspicious activity at Recycling Unit R002. Dispatching Investigation squad. 04493_ Acquired Biometal Leg. 04513_ ALERT: Potential suspicious activity detected, Programmers report to Research Zone 3X. 04514_ O-16 Technician: "IFF HANDSHAKE FAILED. SECURING TERMINAL." 04516_ System corrupted: Matter fused (-8). 04519_ ALERT: Hostiles spotted, dispatching reinforcements to Terminal R005. 04522_ Acquired Biometal Medium Treads. 04531_ System corrupted: Matter fused (-9). 04531_ Fabricator disabled. Map ----- +----------------------------------------------------+ | #? # ??????????????????? #??????????? | | ###### ??????????????????? ???????????? | | #??# #???????????????????? ?????????????? | | #??# #????????????????????????????????????? | | #??# #????????????????????????????????????? | | #??# #????????????????????????????????????? | | #### #????????????????????????????????????? | | #????????????????????????????????????? | | #????????????????????????????????????? | | #????????????????????????????????????? | | """ + ?????????????????????????????? | | """" # ????????????????????????????? | | "F"" #?? ?????????????????????????????? | | "" #?##########?????????????????????????? | | "" #?# #?????????????????????????? | | "" #?# #?????????????????????????? | | #?# #?????????????????????????? | | #?# #?????????????????????????? | | #?#""" #?????????????????????????? | | ####### #?#""" #?????????????????????????? | | ??????# #?#""" #?????????????????????????? | | ??????# #??? #?????????????????????????? | | ??????# #????? ??????????????????????????? | | ??????# ########+##########??????????????????? | | ??????# p #??????????????????? | | ??????# @ #??????????????????? | | ??????# #??????????????????? | | ??????# #??????????????????? | | ??????# k ^ #??????????????????? | | ??????############+###### #??????????????????? | | ????????????????????????# #??????????????????? | | ????????????????????????# #??????????????????? | | ????????????????????????# #??????????????????? | | ????????????????????????# #??????????????????? | | ????????????????????????? #??????????????????? | | ????????????????????????? #??????????????????? | | ????????????????????????? #??????????????????? | | ????????????????????????? #??????????????????? | | ????????????????????????? #??????????????????? | | ????????????????????????? ???????????????????? | | ????????????????????????? ?????????????????????? | | ?????????????????????????????????????????????????? | | ?????????????????????????????????????????????????? | | ?????????????????????????????????????????????????? | | ?????????????????????????????????????????????????? | | ?????????????????????????????????????????????????? | | ?????????????????????????????????????????????????? | | ?????????????????????????????????????????????????? | | ?????????????????????????????????????????????????? | | ?????????????????????????????????????????????????? | +----------------------------------------------------+ Best States ------------- Heat Dissipation 46 Energy Generation 21 Energy Capacity 350 Matter Stores 300 Matter Capacity 300 Sight Range 16 Terrain Scan Density 1010 Armor Coverage 800 Utility Shielding 66 Evasion (%) 62 Melee Accuracy 5 Recoil Reduction 4 Offensive Hacking 10 Item Schematics ----------------- None Robot Schematics ------------------ None Fabricated ------------ Nothing Repaired ---------- Nothing Studied --------- None Alien Tech Used ----------------- None Achievements -------------- None Challenges ------------ None Game ------ Seed VisualRiotScrap Manual? 0 Play Time 00:31:28 Cumulative 401.8 hours Start 2025.11.13 @ 01:41:44 End 2025.11.13 @ 02:15:25 Sessions 1 Manual Loads 0 Difficulty Rogue Special Mode None Game No. 373 Rogue 373 Adventurer 0 Explorer 0 Win Type - Total 3 Types 2/1/0/0/0/0/0/0/0/0 Lore% 85 Gallery% 84 Achievement% 62 Wizard Run 0 Options --------- Layout 1 ASCII 0 Keyboard 0 Movement Numpad Keybinds 0 Fullscreen 1 Font 24/Smallcaps Map View 50x35 Zoom Use 0% Tactical HUD 1 Map Filters NONE Filters NONE Steam 1 RUN: 805f6864-c4fc-4d85-9e95-7f0b57453182